[Event "Late-Titled-Tuesday-Blitz-March-19-2024"]
[Site "Chess.com"]
[Date "2024.03.19"]
[Round "3"]
[White "tarno17"]
[Black "IngOscarArdila"]
[Result "1-0"]
[WhiteElo "2189"]
[BlackElo "2387"]
[TimeControl "180+1"]
[EndTime "14:29:31 PDT"]
[Termination "tarno17 won on time"]

1. e4 {[%clk 0:03:00.9]} 1... e5 {[%clk 0:03:00]} 2. Nf3 {[%clk 0:03:00.5]} 2...
Nf6 {[%clk 0:03:00]} 3. Nxe5 {[%clk 0:02:59.7]} 3... d6 {[%clk 0:02:59.9]} 4.
Nf3 {[%clk 0:02:58.3]} 4... Nxe4 {[%clk 0:03:00]} 5. d3 {[%clk 0:02:57]} 5...
Nf6 {[%clk 0:02:59.8]} 6. d4 {[%clk 0:02:57]} 6... Bg4 {[%clk 0:02:59.6]} 7. Be2
{[%clk 0:02:53.3]} 7... Be7 {[%clk 0:02:59.4]} 8. O-O {[%clk 0:02:53.4]} 8...
O-O {[%clk 0:02:59.3]} 9. d5 {[%clk 0:02:44.6]} 9... Nbd7 {[%clk 0:02:58.7]} 10.
c4 {[%clk 0:02:42.8]} 10... a5 {[%clk 0:02:58.4]} 11. Nc3 {[%clk 0:02:41.1]}
11... Re8 {[%clk 0:02:57.6]} 12. b3 {[%clk 0:02:19.9]} 12... Nc5 {[%clk
0:02:57.5]} 13. Bb2 {[%clk 0:02:17.3]} 13... Qd7 {[%clk 0:02:51]} 14. h3 {[%clk
0:02:08.2]} 14... Bh5 {[%clk 0:02:50.4]} 15. Re1 {[%clk 0:02:04.5]} 15... Bf8
{[%clk 0:02:24.1]} 16. Ng5 {[%clk 0:01:34.3]} 16... Bg6 {[%clk 0:02:01]} 17. Nb5
{[%clk 0:01:18]} 17... Nfe4 {[%clk 0:01:46.7]} 18. Nxe4 {[%clk 0:01:16.4]} 18...
Rxe4 {[%clk 0:01:46]} 19. Bg4 {[%clk 0:00:49.5]} 19... f5 {[%clk 0:01:45.1]} 20.
Bf3 {[%clk 0:00:49.3]} 20... Rxe1+ {[%clk 0:01:44.1]} 21. Qxe1 {[%clk
0:00:50.2]} 21... Nd3 {[%clk 0:01:41.5]} 22. Qd2 {[%clk 0:00:48.1]} 22... Nxb2
{[%clk 0:01:39.8]} 23. Qxb2 {[%clk 0:00:49]} 23... Be7 {[%clk 0:01:39.2]} 24.
Re1 {[%clk 0:00:47]} 24... Bf6 {[%clk 0:01:38.7]} 25. Qd2 {[%clk 0:00:41]} 25...
h6 {[%clk 0:01:25.2]} 26. Nd4 {[%clk 0:00:33.2]} 26... a4 {[%clk 0:01:14.5]} 27.
b4 {[%clk 0:00:24.3]} 27... Re8 {[%clk 0:01:04.7]} 28. Ne6 {[%clk 0:00:24.8]}
28... c6 {[%clk 0:00:57.9]} 29. Qd1 {[%clk 0:00:20.8]} 29... Bc3 {[%clk
0:00:46.8]} 30. Re3 {[%clk 0:00:15]} 30... Bxb4 {[%clk 0:00:41]} 31. Bh5 {[%clk
0:00:15]} 31... Bf7 {[%clk 0:00:28.8]} 32. Rg3 {[%clk 0:00:12.6]} 32... Bxe6
{[%clk 0:00:15.9]} 33. Bxe8 {[%clk 0:00:12.9]} 33... Qxe8 {[%clk 0:00:14.3]} 34.
dxe6 {[%clk 0:00:13.5]} 34... Qxe6 {[%clk 0:00:14.2]} 35. Qh5 {[%clk 0:00:10.3]}
35... Kh7 {[%clk 0:00:09.2]} 36. Re3 {[%clk 0:00:07.4]} 36... Qf6 {[%clk
0:00:08.7]} 37. Qe8 {[%clk 0:00:06.6]} 37... Bc5 {[%clk 0:00:07.7]} 38. Re1
{[%clk 0:00:05.9]} 38... f4 {[%clk 0:00:06.2]} 39. Qe7 {[%clk 0:00:06.1]} 39...
Qxe7 {[%clk 0:00:06]} 40. Rxe7 {[%clk 0:00:06.9]} 40... b5 {[%clk 0:00:05.9]}
41. Rc7 {[%clk 0:00:07.1]} 41... bxc4 {[%clk 0:00:05.4]} 42. Kf1 {[%clk
0:00:04.7]} 42... c3 {[%clk 0:00:05.2]} 43. Ke2 {[%clk 0:00:05.4]} 43... Kg6
{[%clk 0:00:03.5]} 44. Rxc6 {[%clk 0:00:05.4]} 44... Kf5 {[%clk 0:00:03.3]} 45.
Kd3 {[%clk 0:00:05.8]} 45... Ke5 {[%clk 0:00:03.4]} 46. Rc7 {[%clk 0:00:06.3]}
46... g5 {[%clk 0:00:03.2]} 47. Rh7 {[%clk 0:00:07]} 47... Kd5 {[%clk 0:00:03]}
48. Rxh6 {[%clk 0:00:07.4]} 48... Bxf2 {[%clk 0:00:03.2]} 49. Rg6 {[%clk
0:00:07.2]} 49... Bh4 {[%clk 0:00:03.3]} 50. Rg7 {[%clk 0:00:07.2]} 50... c2
{[%clk 0:00:03.6]} 51. Kxc2 {[%clk 0:00:07.3]} 51... Ke4 {[%clk 0:00:04.3]} 52.
Rd7 {[%clk 0:00:05.6]} 52... d5 {[%clk 0:00:03.9]} 53. Kd2 {[%clk 0:00:05.4]}
53... Bf2 {[%clk 0:00:03.2]} 54. Ke2 {[%clk 0:00:05.6]} 54... Bc5 {[%clk
0:00:03.1]} 55. Rc7 {[%clk 0:00:05.5]} 55... Bb6 {[%clk 0:00:02.7]} 56. Rb7
{[%clk 0:00:05.7]} 56... Bg1 {[%clk 0:00:02.8]} 57. Rb4+ {[%clk 0:00:05.8]}
57... d4 {[%clk 0:00:03]} 58. Rxa4 {[%clk 0:00:06.3]} 58... g4 {[%clk
0:00:03.3]} 59. hxg4 {[%clk 0:00:06.4]} 59... Be3 {[%clk 0:00:03]} 60. g5 {[%clk
0:00:06.5]} 60... Kf5 {[%clk 0:00:03.3]} 61. Ra5+ {[%clk 0:00:06.3]} 61... Ke4
{[%clk 0:00:03.6]} 62. g6 {[%clk 0:00:06.1]} 62... d3+ {[%clk 0:00:03.9]} 63.
Kd1 {[%clk 0:00:06.2]} 63... f3 {[%clk 0:00:03.9]} 64. gxf3+ {[%clk 0:00:06.4]}
64... Kxf3 {[%clk 0:00:04.1]} 65. g7 {[%clk 0:00:06.7]} 65... Bd4 {[%clk
0:00:04.4]} 66. g8=Q {[%clk 0:00:06.7]} 1-0

[Event "Late-Titled-Tuesday-Blitz-March-19-2024"]
[Site "Chess.com"]
[Date "2024.03.19"]
[Round "3"]
[White "Goryachkina"]
[Black "KetiTsatsalashvili"]
[Result "1/2-1/2"]
[WhiteElo "2643"]
[BlackElo "2467"]
[TimeControl "180+1"]
[EndTime "14:29:34 PDT"]
[Termination "Game drawn - insufficient material"]

1. e4 {[%clk 0:02:59.7]} 1... c5 {[%clk 0:02:58.4]} 2. Nf3 {[%clk 0:02:59.5]}
2... d6 {[%clk 0:02:58.3]} 3. d4 {[%clk 0:02:57.9]} 3... cxd4 {[%clk 0:02:59.2]}
4. Nxd4 {[%clk 0:02:58.4]} 4... Nf6 {[%clk 0:02:59.8]} 5. Nc3 {[%clk 0:02:58.2]}
5... Nc6 {[%clk 0:03:00.5]} 6. f3 {[%clk 0:02:57]} 6... e5 {[%clk 0:03:00.2]} 7.
Nb3 {[%clk 0:02:56.2]} 7... Be7 {[%clk 0:02:59.5]} 8. Be3 {[%clk 0:02:52.3]}
8... Be6 {[%clk 0:02:59]} 9. Qe2 {[%clk 0:02:48.6]} 9... O-O {[%clk 0:02:57.2]}
10. O-O-O {[%clk 0:02:48]} 10... a6 {[%clk 0:02:57.4]} 11. g4 {[%clk 0:02:04.1]}
11... Rc8 {[%clk 0:02:51.4]} 12. h4 {[%clk 0:01:43.4]} 12... Nb4 {[%clk
0:02:50]} 13. Kb1 {[%clk 0:01:28.5]} 13... Bxb3 {[%clk 0:02:35.2]} 14. cxb3
{[%clk 0:01:27.7]} 14... Qa5 {[%clk 0:02:33]} 15. h5 {[%clk 0:01:22]} 15... Rc7
{[%clk 0:02:09.1]} 16. g5 {[%clk 0:01:18.2]} 16... Nd7 {[%clk 0:02:07.5]} 17. a3
{[%clk 0:01:04.9]} 17... Rxc3 {[%clk 0:01:44.1]} 18. bxc3 {[%clk 0:01:04.6]}
18... Qxa3 {[%clk 0:01:28.4]} 19. Qb2 {[%clk 0:01:03.9]} 19... Qxb2+ {[%clk
0:01:25.8]} 20. Kxb2 {[%clk 0:01:04.8]} 20... Nc6 {[%clk 0:01:26.2]} 21. Bc4
{[%clk 0:01:01.1]} 21... Rc8 {[%clk 0:01:16.1]} 22. g6 {[%clk 0:01:00]} 22...
Nd8 {[%clk 0:01:12.4]} 23. Bd5 {[%clk 0:00:55.4]} 23... Rc7 {[%clk 0:00:40.7]}
24. f4 {[%clk 0:00:47.1]} 24... exf4 {[%clk 0:00:34]} 25. Bxf4 {[%clk
0:00:47.3]} 25... Bf6 {[%clk 0:00:33.3]} 26. Rh3 {[%clk 0:00:46.9]} 26... Ne5
{[%clk 0:00:28.1]} 27. Bxe5 {[%clk 0:00:42.1]} 27... Bxe5 {[%clk 0:00:25.2]} 28.
gxf7+ {[%clk 0:00:38.1]} 28... Kf8 {[%clk 0:00:21.7]} 29. Rf1 {[%clk 0:00:37]}
29... Nc6 {[%clk 0:00:18.2]} 30. Kb1 {[%clk 0:00:32.1]} 30... Ne7 {[%clk
0:00:15.1]} 31. c4 {[%clk 0:00:32.3]} 31... Nxd5 {[%clk 0:00:11.8]} 32. exd5
{[%clk 0:00:27.6]} 32... h6 {[%clk 0:00:11.9]} 33. Rhf3 {[%clk 0:00:27.1]} 33...
Re7 {[%clk 0:00:11]} 34. Kc2 {[%clk 0:00:27]} 34... b5 {[%clk 0:00:10.3]} 35.
Kd3 {[%clk 0:00:27.2]} 35... bxc4+ {[%clk 0:00:10]} 36. bxc4 {[%clk 0:00:28.1]}
36... Rb7 {[%clk 0:00:10.6]} 37. Ke4 {[%clk 0:00:27.9]} 37... a5 {[%clk
0:00:10.3]} 38. Kf5 {[%clk 0:00:24.6]} 38... Kxf7 {[%clk 0:00:10.7]} 39. Ra3
{[%clk 0:00:21.2]} 39... Ra7 {[%clk 0:00:09.4]} 40. Rf2 {[%clk 0:00:20.6]} 40...
Bf6 {[%clk 0:00:09.6]} 41. Rfa2 {[%clk 0:00:19.7]} 41... Rc7 {[%clk 0:00:09.9]}
42. Rxa5 {[%clk 0:00:18.7]} 42... Rxc4 {[%clk 0:00:10.1]} 43. Ra7+ {[%clk
0:00:18.5]} 43... Kg8 {[%clk 0:00:10.6]} 44. Ke6 {[%clk 0:00:17.2]} 44... Be5
{[%clk 0:00:08.1]} 45. Ra8+ {[%clk 0:00:16.3]} 45... Kh7 {[%clk 0:00:08.6]} 46.
Re8 {[%clk 0:00:15.6]} 46... Rh4 {[%clk 0:00:08.2]} 47. Kf7 {[%clk 0:00:10.5]}
47... Rxh5 {[%clk 0:00:08.1]} 48. Raa8 {[%clk 0:00:09.5]} 48... Rf5+ {[%clk
0:00:08.3]} 49. Ke6 {[%clk 0:00:09.8]} 49... Rf6+ {[%clk 0:00:08.7]} 50. Kd7
{[%clk 0:00:10]} 50... h5 {[%clk 0:00:09.3]} 51. Kc7 {[%clk 0:00:06.6]} 51...
Kg6 {[%clk 0:00:09.6]} 52. Rxe5 {[%clk 0:00:06.2]} 52... dxe5 {[%clk 0:00:09.9]}
53. d6 {[%clk 0:00:06.8]} 53... Rf3 {[%clk 0:00:09.4]} 54. d7 {[%clk 0:00:06.5]}
54... Rc3+ {[%clk 0:00:09.2]} 55. Kd6 {[%clk 0:00:06.9]} 55... Rd3+ {[%clk
0:00:09.3]} 56. Ke6 {[%clk 0:00:07.5]} 56... Kg5 {[%clk 0:00:06.2]} 57. d8=Q+
{[%clk 0:00:07]} 57... Rxd8 {[%clk 0:00:06]} 58. Rxd8 {[%clk 0:00:07.9]} 58...
h4 {[%clk 0:00:06.4]} 59. Kxe5 {[%clk 0:00:08.2]} 59... h3 {[%clk 0:00:06.8]}
60. Ke4 {[%clk 0:00:08]} 60... Kg4 {[%clk 0:00:05.5]} 61. Rh8 {[%clk 0:00:06.4]}
61... g5 {[%clk 0:00:05.9]} 62. Ke3 {[%clk 0:00:05.6]} 62... Kg3 {[%clk
0:00:06.7]} 63. Ke4 {[%clk 0:00:04.6]} 63... g4 {[%clk 0:00:05.8]} 64. Kf5
{[%clk 0:00:04.8]} 64... h2 {[%clk 0:00:05.9]} 65. Rxh2 {[%clk 0:00:04.8]} 65...
Kxh2 {[%clk 0:00:06.1]} 66. Kxg4 {[%clk 0:00:05.7]} 1/2-1/2

[Event "Late-Titled-Tuesday-Blitz-March-19-2024"]
[Site "Chess.com"]
[Date "2024.03.19"]
[Round "3"]
[White "katharinareinecke"]
[Black "Piriflillo"]
[Result "0-1"]
[WhiteElo "1977"]
[BlackElo "2365"]
[TimeControl "180+1"]
[EndTime "14:29:38 PDT"]
[Termination "Piriflillo won by checkmate"]

1. d4 {[%clk 0:03:00.9]} 1... d5 {[%clk 0:02:59.1]} 2. c4 {[%clk 0:02:55.1]}
2... c5 {[%clk 0:02:56.7]} 3. cxd5 {[%clk 0:02:54.1]} 3... Nf6 {[%clk
0:02:56.5]} 4. Nc3 {[%clk 0:02:52.5]} 4... Nxd5 {[%clk 0:02:55.6]} 5. Nxd5
{[%clk 0:02:52.5]} 5... Qxd5 {[%clk 0:02:55.6]} 6. Nf3 {[%clk 0:02:48.7]} 6...
Nc6 {[%clk 0:02:51.9]} 7. e3 {[%clk 0:02:44.6]} 7... cxd4 {[%clk 0:02:48.4]} 8.
Nxd4 {[%clk 0:02:43.4]} 8... Nxd4 {[%clk 0:02:48.6]} 9. Qxd4 {[%clk 0:02:38.4]}
9... Qxd4 {[%clk 0:02:48]} 10. exd4 {[%clk 0:02:39.3]} 10... Bd7 {[%clk
0:02:38.7]} 11. Bf4 {[%clk 0:02:32.4]} 11... e6 {[%clk 0:02:35.8]} 12. O-O-O
{[%clk 0:02:28.7]} 12... Bc6 {[%clk 0:02:26.1]} 13. f3 {[%clk 0:02:24.5]} 13...
Be7 {[%clk 0:02:14.3]} 14. Kb1 {[%clk 0:02:21.3]} 14... O-O {[%clk 0:02:13.6]}
15. Bd3 {[%clk 0:02:14.7]} 15... Rfd8 {[%clk 0:02:11.5]} 16. Be4 {[%clk
0:02:13.5]} 16... Rac8 {[%clk 0:01:46]} 17. Be3 {[%clk 0:02:03]} 17... Bf6
{[%clk 0:01:40.2]} 18. Rd2 {[%clk 0:01:54.4]} 18... Bd5 {[%clk 0:01:34.5]} 19.
Rhd1 {[%clk 0:01:50.4]} 19... h6 {[%clk 0:01:27.9]} 20. g4 {[%clk 0:01:43.7]}
20... Rd7 {[%clk 0:01:19.4]} 21. Bxd5 {[%clk 0:01:42.9]} 21... Rxd5 {[%clk
0:01:19.3]} 22. f4 {[%clk 0:01:42]} 22... Rcd8 {[%clk 0:01:16.1]} 23. Bf2 {[%clk
0:01:25.9]} 23... Kf8 {[%clk 0:01:07.2]} 24. h4 {[%clk 0:01:24.1]} 24... g6
{[%clk 0:01:00.3]} 25. g5 {[%clk 0:01:18.7]} 25... Bg7 {[%clk 0:00:58.7]} 26.
Be3 {[%clk 0:01:12.9]} 26... h5 {[%clk 0:00:53.8]} 27. a3 {[%clk 0:01:10.2]}
27... Ke8 {[%clk 0:00:48.3]} 28. b4 {[%clk 0:01:10.2]} 28... Bf8 {[%clk
0:00:48.4]} 29. Ka2 {[%clk 0:01:09.9]} 29... Bd6 {[%clk 0:00:48]} 30. Kb3 {[%clk
0:01:09.3]} 30... Rf5 {[%clk 0:00:46.8]} 31. Rf1 {[%clk 0:01:08.6]} 31... Bc7
{[%clk 0:00:40.4]} 32. a4 {[%clk 0:01:01.7]} 32... Rfd5 {[%clk 0:00:27.3]} 33.
Rfd1 {[%clk 0:00:59.1]} 33... f6 {[%clk 0:00:26.7]} 34. a5 {[%clk 0:00:54.9]}
34... a6 {[%clk 0:00:22.4]} 35. Kc4 {[%clk 0:00:53.8]} 35... Kf7 {[%clk
0:00:20.9]} 36. Kb3 {[%clk 0:00:49.8]} 36... Bb8 {[%clk 0:00:17.4]} 37. Kc4
{[%clk 0:00:48.4]} 37... Ba7 {[%clk 0:00:18]} 38. Kb3 {[%clk 0:00:43.1]} 38...
e5 {[%clk 0:00:15]} 39. dxe5 {[%clk 0:00:38.4]} 39... Rxd2 {[%clk 0:00:14.8]}
40. Bxd2 {[%clk 0:00:37.7]} 40... fxe5 {[%clk 0:00:13.7]} 41. fxe5 {[%clk
0:00:37.2]} 41... Ke6 {[%clk 0:00:13.3]} 42. Kc2 {[%clk 0:00:35.3]} 42... Bd4
{[%clk 0:00:07.3]} 43. Bf4 {[%clk 0:00:32.5]} 43... Rd5 {[%clk 0:00:06.8]} 44.
Rd3 {[%clk 0:00:31.6]} 44... Bxe5 {[%clk 0:00:07]} 45. Bxe5 {[%clk 0:00:31]}
45... Kxe5 {[%clk 0:00:07.9]} 46. Re3+ {[%clk 0:00:31]} 46... Kf5 {[%clk
0:00:05.5]} 47. Rc3 {[%clk 0:00:30.6]} 47... Rd4 {[%clk 0:00:04.8]} 48. Kb3
{[%clk 0:00:30.1]} 48... Rxh4 {[%clk 0:00:04.9]} 49. Rc5+ {[%clk 0:00:29.4]}
49... Kg4 {[%clk 0:00:04.7]} 50. Rc7 {[%clk 0:00:28.4]} 50... Kxg5 {[%clk
0:00:04.9]} 51. Rxb7 {[%clk 0:00:28.6]} 51... Rh3+ {[%clk 0:00:05.5]} 52. Kc4
{[%clk 0:00:28.4]} 52... Rh1 {[%clk 0:00:05.6]} 53. b5 {[%clk 0:00:24.6]} 53...
Rc1+ {[%clk 0:00:05.6]} 54. Kd5 {[%clk 0:00:21.3]} 54... axb5 {[%clk 0:00:06.5]}
55. Rxb5 {[%clk 0:00:21.1]} 55... Ra1 {[%clk 0:00:07.2]} 56. Kc6+ {[%clk
0:00:17.9]} 56... Kg4 {[%clk 0:00:07]} 57. Kb7 {[%clk 0:00:17.2]} 57... h4
{[%clk 0:00:05.4]} 58. a6 {[%clk 0:00:17.7]} 58... h3 {[%clk 0:00:03.9]} 59. a7
{[%clk 0:00:17.2]} 59... Rxa7+ {[%clk 0:00:04]} 60. Kxa7 {[%clk 0:00:17.3]}
60... h2 {[%clk 0:00:04.6]} 61. Rb1 {[%clk 0:00:16.4]} 61... Kh3 {[%clk
0:00:04.7]} 62. Kb6 {[%clk 0:00:16.4]} 62... g5 {[%clk 0:00:04.9]} 63. Kc5
{[%clk 0:00:16.5]} 63... g4 {[%clk 0:00:05.7]} 64. Kd4 {[%clk 0:00:16.8]} 64...
g3 {[%clk 0:00:06.3]} 65. Ke4 {[%clk 0:00:13.3]} 65... g2 {[%clk 0:00:06.8]} 66.
Rb3+ {[%clk 0:00:13.5]} 66... Kg4 {[%clk 0:00:06.5]} 67. Rg3+ {[%clk 0:00:10.9]}
67... Kxg3 {[%clk 0:00:06.3]} 68. Ke3 {[%clk 0:00:11]} 68... g1=Q+ {[%clk
0:00:06.6]} 69. Ke2 {[%clk 0:00:11]} 69... h1=Q {[%clk 0:00:06.4]} 70. Kd3
{[%clk 0:00:11.1]} 70... Qd5+ {[%clk 0:00:06.3]} 71. Kc3 {[%clk 0:00:10.7]}
71... Qgc5+ {[%clk 0:00:07]} 72. Kb2 {[%clk 0:00:10.4]} 72... Qb7+ {[%clk
0:00:07.7]} 73. Ka1 {[%clk 0:00:10.5]} 73... Qca7# {[%clk 0:00:08.6]} 0-1

[Event "Late-Titled-Tuesday-Blitz-March-19-2024"]
[Site "Chess.com"]
[Date "2024.03.19"]
[Round "3"]
[White "RichardLeyvaP"]
[Black "inagreV"]
[Result "0-1"]
[WhiteElo "2538"]
[BlackElo "2387"]
[TimeControl "180+1"]
[EndTime "14:29:46 PDT"]
[Termination "inagreV won on time"]

1. e4 {[%clk 0:02:59.3]} 1... c5 {[%clk 0:02:59.1]} 2. Nf3 {[%clk 0:02:59.3]}
2... Nc6 {[%clk 0:02:59.6]} 3. d4 {[%clk 0:02:59.7]} 3... cxd4 {[%clk
0:03:00.5]} 4. Nxd4 {[%clk 0:03:00.2]} 4... Nf6 {[%clk 0:03:01.2]} 5. Nc3 {[%clk
0:03:00.4]} 5... d6 {[%clk 0:03:01.7]} 6. Bc4 {[%clk 0:02:59.8]} 6... Qb6 {[%clk
0:03:00.9]} 7. Nb3 {[%clk 0:02:57.2]} 7... e6 {[%clk 0:02:59.2]} 8. Qe2 {[%clk
0:02:53.9]} 8... Be7 {[%clk 0:02:59]} 9. Be3 {[%clk 0:02:53.6]} 9... Qc7 {[%clk
0:02:59]} 10. f4 {[%clk 0:02:53.6]} 10... O-O {[%clk 0:02:56]} 11. g4 {[%clk
0:02:50.1]} 11... d5 {[%clk 0:02:42.4]} 12. exd5 {[%clk 0:02:45.5]} 12... exd5
{[%clk 0:02:43.3]} 13. Nxd5 {[%clk 0:02:36.3]} 13... Nxd5 {[%clk 0:02:43.3]} 14.
Bxd5 {[%clk 0:02:37.2]} 14... Nb4 {[%clk 0:02:43.7]} 15. Be4 {[%clk 0:02:37.1]}
15... Bh4+ {[%clk 0:02:29.7]} 16. Kf1 {[%clk 0:02:31.1]} 16... Re8 {[%clk
0:02:25.2]} 17. Qf3 {[%clk 0:02:23.1]} 17... Nxc2 {[%clk 0:02:18.5]} 18. Bxc2
{[%clk 0:01:13.2]} 18... Qxc2 {[%clk 0:02:10.8]} 19. Bd4 {[%clk 0:01:01.2]}
19... Be6 {[%clk 0:01:54]} 20. Rc1 {[%clk 0:01:00]} 20... Bc4+ {[%clk
0:01:40.4]} 21. Kg1 {[%clk 0:00:59.8]} 21... Qe2 {[%clk 0:01:33.7]} 22. Qxe2
{[%clk 0:00:59.4]} 22... Bxe2 {[%clk 0:01:33]} 23. h3 {[%clk 0:00:34.9]} 23...
Bg3 {[%clk 0:01:33.1]} 24. f5 {[%clk 0:00:24.4]} 24... Bf3 {[%clk 0:01:31.8]}
25. Rc3 {[%clk 0:00:23.3]} 25... Bxh1 {[%clk 0:01:30.4]} 26. Rxg3 {[%clk
0:00:23]} 26... Bd5 {[%clk 0:01:30.4]} 27. f6 {[%clk 0:00:14.8]} 27... Bxb3
{[%clk 0:01:16.8]} 28. Rxb3 {[%clk 0:00:13.4]} 28... Rad8 {[%clk 0:01:17.1]} 29.
Bc3 {[%clk 0:00:12]} 29... Re2 {[%clk 0:01:16]} 30. Kf1 {[%clk 0:00:11]} 30...
Rh2 {[%clk 0:01:16]} 31. Kg1 {[%clk 0:00:11.1]} 31... Rc2 {[%clk 0:01:15.7]} 32.
Kf1 {[%clk 0:00:09]} 32... gxf6 {[%clk 0:01:15.5]} 33. Rxb7 {[%clk 0:00:07.8]}
33... Rd1+ {[%clk 0:01:14.3]} 34. Be1 {[%clk 0:00:07.4]} 34... Rh2 {[%clk
0:01:13.5]} 35. Kg1 {[%clk 0:00:06.4]} 35... Rxh3 {[%clk 0:01:11.8]} 36. Kg2
{[%clk 0:00:06.2]} 36... Rhd3 {[%clk 0:01:08.7]} 37. Bc3 {[%clk 0:00:07.1]}
37... Kg7 {[%clk 0:01:07.5]} 38. g5 {[%clk 0:00:07.2]} 38... R1d2+ {[%clk
0:01:02.3]} 39. Bxd2 {[%clk 0:00:05.4]} 39... Rxd2+ {[%clk 0:01:03.2]} 40. Kf3
{[%clk 0:00:06.3]} 40... fxg5 {[%clk 0:01:03.2]} 41. a4 {[%clk 0:00:06.1]} 41...
h5 {[%clk 0:01:02.1]} 42. b4 {[%clk 0:00:06.4]} 42... h4 {[%clk 0:00:59.5]} 43.
b5 {[%clk 0:00:05.8]} 43... Kg6 {[%clk 0:00:59.4]} 44. Rxa7 {[%clk 0:00:05.8]}
44... f5 {[%clk 0:00:58.5]} 45. b6 {[%clk 0:00:05.9]} 45... g4+ {[%clk
0:00:59.2]} 46. Ke3 {[%clk 0:00:06.2]} 46... Rb2 {[%clk 0:00:58.8]} 47. a5
{[%clk 0:00:06]} 47... h3 {[%clk 0:00:58.5]} 48. b7 {[%clk 0:00:06.6]} 48... h2
{[%clk 0:00:58.1]} 49. Ra6+ {[%clk 0:00:07.5]} 49... Kg5 {[%clk 0:00:56.5]} 50.
Rb6 {[%clk 0:00:08.1]} 50... Rxb6 {[%clk 0:00:56.1]} 51. axb6 {[%clk 0:00:08.3]}
51... h1=Q {[%clk 0:00:57]} 52. b8=Q {[%clk 0:00:09.2]} 52... Qe1+ {[%clk
0:00:54]} 53. Kd3 {[%clk 0:00:09]} 53... Qe4+ {[%clk 0:00:53.8]} 54. Kc3 {[%clk
0:00:09.4]} 54... g3 {[%clk 0:00:53.3]} 55. b7 {[%clk 0:00:08.1]} 55... Qc6+
{[%clk 0:00:51.8]} 56. Kd3 {[%clk 0:00:07.5]} 56... Qd5+ {[%clk 0:00:51]} 57.
Kc3 {[%clk 0:00:08]} 57... Qf3+ {[%clk 0:00:50.9]} 58. Kb4 {[%clk 0:00:07]}
58... Qe4+ {[%clk 0:00:49.8]} 59. Kc3 {[%clk 0:00:07.4]} 59... Qc6+ {[%clk
0:00:49.6]} 60. Kd3 {[%clk 0:00:06.2]} 60... Qb5+ {[%clk 0:00:47.8]} 61. Kc3
{[%clk 0:00:06.4]} 61... Qc5+ {[%clk 0:00:47.8]} 62. Kd3 {[%clk 0:00:06.8]}
62... Qd5+ {[%clk 0:00:34.7]} 63. Kc3 {[%clk 0:00:06.7]} 63... Kg4 {[%clk
0:00:26]} 64. Qc7 {[%clk 0:00:03.3]} 64... Qf3+ {[%clk 0:00:23.9]} 65. Kb4
{[%clk 0:00:03.8]} 65... Qe4+ {[%clk 0:00:23.5]} 66. Kb5 {[%clk 0:00:04]} 66...
Qd3+ {[%clk 0:00:22.1]} 67. Kb4 {[%clk 0:00:04.5]} 67... Qd4+ {[%clk 0:00:22.4]}
68. Kb5 {[%clk 0:00:04.9]} 68... g2 {[%clk 0:00:22.5]} 69. b8=Q {[%clk
0:00:03.9]} 69... g1=Q {[%clk 0:00:22.7]} 70. Qg8+ {[%clk 0:00:02.6]} 70... Kf3
{[%clk 0:00:21.7]} 71. Qc6+ {[%clk 0:00:03]} 71... Ke2 {[%clk 0:00:20]} 72. Qc2+
{[%clk 0:00:02]} 72... Kf3 {[%clk 0:00:19.1]} 73. Qa8+ {[%clk 0:00:01.2]} 73...
Kg3 {[%clk 0:00:18.5]} 74. Qb3+ {[%clk 0:00:01.2]} 74... Qde3 {[%clk 0:00:18.1]}
0-1